fUST/lending_fUST_20251208
["ID","MTS","AMOUNT","RATE_DAILY","PERIOD"]
[396980603,1765134648938,-260.321887,0.00010685,2]
[396980605,1765134648947,-260.321887,0.00010685,2]
[396980607,1765134648957,-260.321887,0.00010685,2]
[396980609,1765134648966,-260.321887,0.00010685,2]
[396980611,1765134648975,-260.321887,0.00010685,2]
[396980613,1765134648985,-260.321887,0.00010685,2]
[396980615,1765134648994,-260.321887,0.00010685,2]
[396980617,1765134649004,-260.321881,0.00010685,2]
[396980619,1765134649013,-263.404174,0.00010685,2]
[396980621,1765134649022,-263.404174,0.00010685,2]
[396980623,1765134649031,-263.404174,0.00010685,2]
[396980625,1765134649041,-263.404174,0.00010685,2]
[396980627,1765134649050,-263.404174,0.00010685,2]
[396980629,1765134649060,-263.404174,0.00010685,2]
[396980631,1765134649069,-263.404174,0.00010685,2]
[396980633,1765134649078,-263.404174,0.00010685,2]
[396980635,1765134649087,-263.404174,0.00010685,2]
[396980637,1765134649096,-263.404174,0.00010685,2]
[396980639,1765134649105,-263.404174,0.00010685,2]
[396980641,1765134649114,-263.404174,0.00010685,2]
[396980643,1765134649124,-263.404174,0.00010685,2]
[396980645,1765134649134,-263.404174,0.00010685,2]
[396980646,1765134649144,-263.404174,0.00010685,2]
[396980648,1765134649153,-263.404174,0.00010685,2]
[396980651,1765134649164,-263.404174,0.00010685,2]
[396980652,1765134649173,-263.404174,0.00010685,2]
[396980654,1765134649185,-263.404174,0.00010685,2]
[396980656,1765134649195,-263.40418,0.00010685,2]
[396980658,1765134649205,-251.333956,0.00010685,2]
[396980660,1765134649215,-251.333956,0.00010685,2]
[396980662,1765134649224,-251.333956,0.00010685,2]
[396980664,1765134649233,-251.333956,0.00010685,2]
[396980666,1765134649242,-251.333956,0.00010685,2]
[396980668,1765134649252,-251.333956,0.00010685,2]
[396980670,1765134649263,-251.333956,0.00010685,2]
[396980672,1765134649273,-251.333956,0.00010685,2]
[396980674,1765134649283,-251.333956,0.00010685,2]
[396980676,1765134649292,-251.333956,0.00010685,2]
[396980678,1765134649302,-251.333956,0.00010685,2]
[396980680,1765134649311,-251.333956,0.00010685,2]
[396980682,1765134649321,-251.333956,0.00010685,2]
[396980684,1765134649330,-251.333956,0.00010685,2]
[396980686,1765134649340,-251.333956,0.00010685,2]
[396980688,1765134649349,-251.333956,0.00010685,2]
[396980690,1765134649359,-251.333956,0.00010685,2]
[396980692,1765134649368,-251.333956,0.00010685,2]
[396980694,1765134649376,-251.333956,0.00010685,2]
[396980696,1765134649386,-251.333949,0.00010685,2]
[396980698,1765134649395,-151.0,0.00010685,2]
[396980700,1765134649404,-151.0,0.00010685,2]
[396980702,1765134649413,-151.0,0.00010685,2]
[396980704,1765134649422,-151.0,0.00010685,2]
[396980706,1765134649431,-151.0,0.00010685,2]
[396980708,1765134649442,-151.0,0.00010685,2]
[396980710,1765134649451,-151.0,0.00010685,2]
[396980712,1765134649460,-151.0,0.00010685,2]
[396980714,1765134649469,-151.0,0.00010685,2]
[396980716,1765134649479,-151.0,0.00010685,2]
[396980718,1765134649488,-151.0,0.00010685,2]
[396980720,1765134649497,-151.0,0.00010685,2]
[396980721,1765134649506,-281.692474,0.00010685,2]
[396980723,1765134649515,-438.243977,0.00010685,2]
[396980725,1765134649524,-151.0,0.00010685,2]
[396980727,1765134649533,-175.926012,0.00010685,2]
[396980729,1765134649542,-438.243977,0.00010685,2]
[396980731,1765134649551,-438.243977,0.00010685,2]
[396980733,1765134649560,-438.243977,0.00010685,2]
[396980735,1765134649569,-438.243977,0.00010685,2]
[396980737,1765134649579,-438.243977,0.00010685,2]
[396980739,1765134649588,-438.243977,0.00010685,2]
[396980741,1765134649597,-438.243977,0.00010685,2]
[396980743,1765134649607,-438.243977,0.00010685,2]
[396980745,1765134649616,-438.243977,0.00010685,2]
[396980747,1765134649626,-438.243977,0.00010685,2]
[396980749,1765134649636,-438.243977,0.00010685,2]
[396980751,1765134649647,-438.243977,0.00010685,2]
[396980753,1765134649656,-438.243977,0.00010685,2]
[396980755,1765134649666,-438.243977,0.00010685,2]
[396980757,1765134649678,-438.243977,0.00010685,2]
[396980759,1765134649688,-438.243977,0.00010685,2]
[396980761,1765134649697,-438.243977,0.00010685,2]
[396980763,1765134649706,-438.243977,0.00010685,2]
[396980765,1765134649715,-438.243985,0.00010685,2]
[396980767,1765134649725,-806.613988,0.00010685,2]
[396980769,1765134649734,-806.613988,0.00010685,2]
[396980771,1765134649743,-806.613988,0.00010685,2]
[396980773,1765134649753,-806.613988,0.00010685,2]
[396980775,1765134649763,-806.613988,0.00010685,2]
[396980777,1765134649772,-806.613988,0.00010685,2]
[396980779,1765134649781,-806.613988,0.00010685,2]
[396980781,1765134649789,-806.613988,0.00010685,2]
[396980783,1765134649798,-806.613988,0.00010685,2]
[396980784,1765134649807,-806.613988,0.00010685,2]
[396980786,1765134649816,-806.613988,0.00010685,2]
[396980788,1765134649825,-806.613988,0.00010685,2]
[396980790,1765134649834,-806.613988,0.00010685,2]
[396980792,1765134649843,-806.613988,0.00010685,2]
[396980794,1765134649852,-806.613988,0.00010685,2]
[396980796,1765134649861,-806.613988,0.00010685,2]
[396980798,1765134649870,-806.613988,0.00010685,2]
[396980800,1765134649879,-806.613988,0.00010685,2]
[396980802,1765134649888,-806.613988,0.00010685,2]
[396980804,1765134649897,-806.613998,0.00010685,2]
[396980806,1765134649908,-6098.119318,0.00010685,2]
[396980808,1765134649918,-6098.119318,0.00010685,2]
[396980810,1765134649927,-6098.119318,0.00010685,2]
[396980812,1765134649936,-6098.119318,0.00010685,2]
[396980814,1765134649945,-6098.119318,0.00010685,2]
[396980816,1765134649954,-6098.119318,0.00010685,2]
[396980818,1765134649964,-4342.03118446,0.00010685,2]
[396980864,1765134650411,-1756.08813354,0.00010685,2]
[396980866,1765134650421,-6098.119318,0.00010685,2]
[396980868,1765134650430,-4936.52942258,0.00010685,2]
[396980870,1765134650442,-1161.58989542,0.00010685,2]
[396980872,1765134650450,-6098.119318,0.00010685,2]
[396980874,1765134650459,-6098.119318,0.00010685,2]
[396980876,1765134650468,-6047.57039355,0.00010685,2]
[396980878,1765134650480,-50.54892445,0.00010685,2]
[396980880,1765134650489,-567.78629309,0.00010685,2]
[396989892,1765135526337,473.15867025,9.986e-05,3]
[396989893,1765135550075,-226.0,9.168e-05,2]
[396989894,1765135550101,-5.48065534,9.168e-05,2]
[396989964,1765135634097,-275.92229939,9.168e-05,2]
[396989965,1765135634116,-2820.6167025,9.168e-05,2]
[396989966,1765135634138,-399.31076779,9.869e-05,2]
[396989967,1765135634158,-300.0,9.994e-05,2]
[396989968,1765135634181,-500.0,9.995e-05,2]
[396989969,1765135634204,-500.0,9.995e-05,2]
[396989970,1765135634462,-500.0,9.995e-05,2]
[396989971,1765135634485,-600.0,9.995e-05,2]
[396989972,1765135634507,-500.0,9.995e-05,2]
[396989973,1765135634530,-500.0,9.995e-05,2]
[396989974,1765135634552,-500.0,9.995e-05,2]
[396989975,1765135634572,-251.09333355,9.995e-05,2]
[396989976,1765135634595,-500.0,9.995e-05,2]
[396989977,1765135634616,-500.0,9.995e-05,2]
[396989978,1765135634639,-500.0,9.995e-05,2]
[396989979,1765135634661,-500.0,9.995e-05,2]
[396989980,1765135634683,-500.0,9.995e-05,2]
[396989981,1765135634705,-500.0,9.995e-05,2]
[396989983,1765135634726,-500.0,9.995e-05,2]
[396989984,1765135634747,-272.63369303,9.995e-05,2]
[396989986,1765135634770,-500.0,9.995e-05,2]
[396989988,1765135634792,-500.0,9.995e-05,2]
[396989989,1765135634814,-475.00941873,9.995e-05,2]
[396989998,1765135658905,512.97366903,9.986e-05,3]
[396990006,1765135703812,1000.0,0.000101,3]
[396990032,1765135743869,250.0,0.00010099,3]
[396990037,1765135753129,-882.03956421,8e-05,2]
[396990066,1765135831693,-37.96043579,8e-05,2]
[396990067,1765135831703,-217.0,8e-05,2]
[396990068,1765135831711,-275.77489563,8.847e-05,2]
[396990069,1765135831721,-327.39339858,9.687e-05,2]
[396990098,1765135837772,-71.91736921,9.687e-05,2]
[396990100,1765135837781,-300.0,9.694e-05,2]
[396990102,1765135837790,-820.46877922,9.695e-05,2]
[396990105,1765135837802,-1501.08898084,9.695e-05,2]
[396990108,1765135837830,-25016.28865307,9.695e-05,2]
[396990111,1765135837841,-21396.28431441,9.695e-05,2]
[396990113,1765135837852,-541.09,9.695e-05,2]
[396990115,1765135837863,-300.33223186,9.695e-05,2]
[396990117,1765135837874,-1417.25,9.695e-05,2]
[396990351,1765135840018,-4231.89251024,9.695e-05,2]
[396990353,1765135840030,-3001.14898043,9.695e-05,2]
[396990359,1765135840073,-1085.31156499,9.695e-05,2]
[396990361,1765135840085,-2317.17511019,9.695e-05,2]
[396990642,1765135842938,-5534.44878793,9.695e-05,2]
[396990644,1765135842948,-3948.10738982,9.994e-05,2]
[396990655,1765135843050,-927.0,9.994e-05,2]
[396990657,1765135843062,-1647.11929773,9.994e-05,2]
[396990985,1765135846319,-7657.58372646,9.994e-05,2]
[396990988,1765135846334,-7338.20829235,9.994e-05,2]
[396990990,1765135846344,-500.0,9.994e-05,2]
[396990992,1765135846353,-500.0,9.994e-05,2]
[396990994,1765135846362,-500.0,9.994e-05,2]
[396990996,1765135846371,-409.75489245,9.994e-05,2]
[396990998,1765135846380,-500.0,9.994e-05,2]
[396991000,1765135846389,-500.0,9.994e-05,2]
[396991002,1765135846399,-500.0,9.994e-05,2]
[396991004,1765135846407,-500.0,9.994e-05,2]
[396991006,1765135846417,-167.19300432,9.999e-05,2]
[396991008,1765135846426,-500.0,9.999e-05,2]
[396991010,1765135846435,-500.0,9.999e-05,2]
[396991012,1765135846444,-500.0,9.999e-05,2]
[396991014,1765135846453,-500.0,9.999e-05,2]
[396991016,1765135846463,-500.0,9.999e-05,2]
[396991018,1765135846472,-500.0,9.999e-05,2]
[396991020,1765135846481,-370.50949561,9.999e-05,2]
[396991022,1765135846490,-500.0,9.999e-05,2]
[396991024,1765135846499,-201.934,0.0001,2]
[396991027,1765135846517,-10000.0,0.0001,2]
[396991029,1765135846530,-420.0,0.00010663,2]
[396991031,1765135846539,-151.0,0.00010679,2]
[396991033,1765135846549,-2230.315306,0.00010679,2]
[396991035,1765135846558,-250.0,0.00010684,2]
[396991037,1765135846567,-1095.826051,0.00010685,2]
[396991039,1765135846577,-151.0,0.00010685,2]
[396991041,1765135846586,-151.0,0.00010685,2]
[396991043,1765135846596,-151.0,0.00010685,2]
[396991045,1765135846605,-178.343028,0.00010685,2]
[396991047,1765135846615,-178.343028,0.00010685,2]
[396991049,1765135846624,-201.155987,0.00010685,2]
[396991051,1765135846634,-178.343028,0.00010685,2]
[396991053,1765135846643,-178.343028,0.00010685,2]
[396991055,1765135846653,-178.343028,0.00010685,2]
[396991057,1765135846664,-178.343028,0.00010685,2]
[396991059,1765135846674,-178.343028,0.00010685,2]
[396991061,1765135846683,-178.343028,0.00010685,2]
[396991063,1765135846694,-188.837079,0.00010685,2]
[396991065,1765135846703,-188.837079,0.00010685,2]
[396991067,1765135846712,-188.837079,0.00010685,2]
[396991069,1765135846722,-188.837079,0.00010685,2]
[396991071,1765135846731,-188.837079,0.00010685,2]
[396991073,1765135846740,-188.837079,0.00010685,2]
[396991075,1765135846751,-188.837079,0.00010685,2]
[396991077,1765135846761,-188.837079,0.00010685,2]
[396991079,1765135846771,-188.837079,0.00010685,2]
[396991081,1765135846781,-188.837079,0.00010685,2]
[396991083,1765135846790,-188.837079,0.00010685,2]
[396991085,1765135846800,-188.837079,0.00010685,2]
[396991087,1765135846810,-151.0,0.00010685,2]
[396991089,1765135846820,-151.0,0.00010685,2]
[396991091,1765135846830,-151.0,0.00010685,2]
[396991093,1765135846842,-151.0,0.00010685,2]
[396991095,1765135846852,-151.0,0.00010685,2]
[396991097,1765135846862,-151.0,0.00010685,2]
[396991099,1765135846872,-151.0,0.00010685,2]
[396991101,1765135846882,-151.0,0.00010685,2]
[396991103,1765135846892,-151.0,0.00010685,2]
[396991105,1765135846905,-151.0,0.00010685,2]
[396991107,1765135846917,-151.0,0.00010685,2]
[396991109,1765135846937,-151.0,0.00010685,2]
[396991111,1765135846956,-151.0,0.00010685,2]
[396991113,1765135846976,-151.0,0.00010685,2]
[396991115,1765135846987,-151.0,0.00010685,2]
[396991117,1765135846996,-151.0,0.00010685,2]
[396991119,1765135847006,-252.696,0.00010685,2]
[396991120,1765135847016,-280.48377755,0.00010685,2]
[396991123,1765135847027,-172.0,0.00010685,2]
[396991125,1765135847039,-500.0,0.00010685,3]
[396991126,1765135847051,-151.0,0.00010685,3]
[396991128,1765135847061,-151.0,0.00010685,3]
[396991131,1765135847072,-151.0,0.00010685,3]
[396991132,1765135847083,-151.0,0.00010685,3]
[396991134,1765135847092,-151.0,0.00010685,3]
[396991136,1765135847101,-151.0,0.00010685,3]
[396991138,1765135847112,-151.0,0.00010685,3]
[396991140,1765135847123,-151.0,0.00010685,3]
[396991142,1765135847132,-151.0,0.00010685,3]
[396991144,1765135847142,-151.0,0.00010685,3]
[396991146,1765135847150,-151.0,0.00010685,3]
[396991148,1765135847160,-151.0,0.00010685,3]
[396991150,1765135847170,-151.0,0.00010685,3]
[396991152,1765135847179,-151.0,0.00010685,3]
[396991154,1765135847188,-151.0,0.00010685,3]
[396991156,1765135847198,-151.0,0.00010685,3]
[396991158,1765135847208,-151.0,0.00010685,3]
[396991160,1765135847217,-151.0,0.00010685,3]
[396991162,1765135847226,-153.028137,0.00010685,3]
[396991164,1765135847235,-219.295347,0.00010685,2]
[396991166,1765135847244,-501.674101,0.00010685,2]
[396991168,1765135847253,-501.674101,0.00010685,2]
[396991170,1765135847265,-501.674101,0.00010685,2]
[396991172,1765135847275,-501.674101,0.00010685,2]
[396991174,1765135847284,-501.674101,0.00010685,2]
[396991176,1765135847294,-501.674101,0.00010685,2]
[396991178,1765135847305,-501.674101,0.00010685,2]
[396991180,1765135847317,-501.674101,0.00010685,2]
[396991182,1765135847326,-501.674101,0.00010685,2]
[396991184,1765135847336,-501.674101,0.00010685,2]
[396991186,1765135847345,-501.674101,0.00010685,2]
[396991188,1765135847354,-501.674101,0.00010685,2]
[396991190,1765135847364,-501.674101,0.00010685,2]
[396991192,1765135847373,-501.674101,0.00010685,2]
[396991193,1765135847382,-501.674101,0.00010685,2]
[396991195,1765135847391,-501.674101,0.00010685,2]
[396991197,1765135847400,-501.674101,0.00010685,2]
[396991199,1765135847410,-501.674101,0.00010685,2]
[396991201,1765135847419,-501.674101,0.00010685,2]
[396991203,1765135847428,-501.674104,0.00010685,2]
[396991205,1765135847438,-334.0,0.00010685,2]
[396991207,1765135847447,-334.0,0.00010685,2]
[396991209,1765135847456,-334.0,0.00010685,2]
[396991211,1765135847467,-334.0,0.00010685,2]
[396991213,1765135847477,-479.2738987,0.00010685,2]
[396991215,1765135847486,-151.0,0.00010685,2]
[396991217,1765135847495,-151.0,0.00010685,2]
[396991219,1765135847505,-2410.858412,0.00010685,2]
[396991221,1765135847515,-2410.858412,0.00010685,2]
[396991223,1765135847525,-2410.858412,0.00010685,2]
[396991225,1765135847534,-2410.858412,0.00010685,2]
[396991227,1765135847543,-2410.858412,0.00010685,2]
[396991229,1765135847555,-2410.858412,0.00010685,2]
[396991231,1765135847567,-2410.858412,0.00010685,2]
[396991233,1765135847576,-2410.858412,0.00010685,2]
[396991235,1765135847585,-2410.858412,0.00010685,2]
[396991237,1765135847595,-2410.858412,0.00010685,2]
[396991239,1765135847604,-2410.858412,0.00010685,2]
[396991241,1765135847613,-2410.858412,0.00010685,2]
[396991243,1765135847623,-2410.858412,0.00010685,2]
[396991245,1765135847633,-2410.858412,0.00010685,2]
[396991247,1765135847642,-2410.858412,0.00010685,2]
[396991249,1765135847652,-2410.858412,0.00010685,2]
[396991251,1765135847661,-2410.858412,0.00010685,2]
[396991253,1765135847671,-2410.858412,0.00010685,2]
[396991255,1765135847680,-2410.858412,0.00010685,2]
[396991257,1765135847689,-2410.858416,0.00010685,2]
[396991259,1765135847699,-647.493647,0.00010685,2]
[396991261,1765135847708,-647.493647,0.00010685,2]
[396991263,1765135847717,-647.493647,0.00010685,2]
[396991265,1765135847727,-647.493647,0.00010685,2]
[396991267,1765135847736,-647.493647,0.00010685,2]
[396991269,1765135847745,-647.493647,0.00010685,2]
[396991271,1765135847754,-647.493647,0.00010685,2]
[396991273,1765135847763,-647.493647,0.00010685,2]
[396991275,1765135847772,-647.493647,0.00010685,2]
[396991277,1765135847781,-647.493647,0.00010685,2]
[396991279,1765135847791,-647.493647,0.00010685,2]
[396991281,1765135847800,-647.493647,0.00010685,2]
[396991283,1765135847809,-647.493647,0.00010685,2]
[396991285,1765135847819,-647.493647,0.00010685,2]
[396991287,1765135847828,-647.493647,0.00010685,2]
[396991289,1765135847837,-647.493647,0.00010685,2]
[396991291,1765135847846,-647.493647,0.00010685,2]
[396991293,1765135847855,-647.493647,0.00010685,2]
[396991295,1765135847864,-647.493647,0.00010685,2]
[396991297,1765135847874,-1439.029507,0.00010685,2]
[396991299,1765135847885,-647.49365,0.00010685,2]
[396991301,1765135847894,-1439.029507,0.00010685,2]
[396991303,1765135847904,-1439.029507,0.00010685,2]
[396991305,1765135847913,-1439.029507,0.00010685,2]
[396991307,1765135847922,-1439.029507,0.00010685,2]
[396991309,1765135847931,-1439.029507,0.00010685,2]
[396991311,1765135847942,-1439.029507,0.00010685,2]
[396991313,1765135847951,-1439.029507,0.00010685,2]
[396991315,1765135847960,-1439.029507,0.00010685,2]
[396991317,1765135847970,-1439.029507,0.00010685,2]
[396991319,1765135847979,-1439.029507,0.00010685,2]
[396991321,1765135847988,-1439.029507,0.00010685,2]
[396991323,1765135847997,-1439.029507,0.00010685,2]
[396991325,1765135848007,-1439.029507,0.00010685,2]
[396991327,1765135848016,-1439.029507,0.00010685,2]
[396991329,1765135848026,-1439.029507,0.00010685,2]
[396991331,1765135848036,-1439.029507,0.00010685,2]
[396991333,1765135848049,-1439.029507,0.00010685,2]
[396991335,1765135848059,-1439.029507,0.00010685,2]
[396991337,1765135848069,-1439.029502,0.00010685,2]
[396991339,1765135848078,-151.0,0.00010685,2]
[396991341,1765135848088,-151.0,0.00010685,2]
[396991343,1765135848098,-151.0,0.00010685,2]
[396991345,1765135848107,-151.0,0.00010685,2]
[396991347,1765135848118,-151.0,0.00010685,2]
[396991349,1765135848128,-151.0,0.00010685,2]
[396991351,1765135848137,-151.0,0.00010685,2]
[396991353,1765135848146,-151.0,0.00010685,2]
[396991355,1765135848155,-151.0,0.00010685,2]
[396991357,1765135848165,-151.0,0.00010685,2]
[396991359,1765135848174,-151.0,0.00010685,2]
[396991361,1765135848183,-151.0,0.00010685,2]
[396991363,1765135848193,-151.0,0.00010685,2]
[396991365,1765135848202,-293.375315,0.00010685,2]
[396991367,1765135848212,-263.338156,0.00010685,2]
[396991369,1765135848221,-263.338156,0.00010685,2]
[396991371,1765135848230,-263.338156,0.00010685,2]
[396991372,1765135848239,-263.338156,0.00010685,2]
[396991374,1765135848248,-263.338156,0.00010685,2]
[396991376,1765135848257,-263.338156,0.00010685,2]
[396991378,1765135848267,-263.338156,0.00010685,2]
[396991380,1765135848275,-263.338156,0.00010685,2]
[396991382,1765135848285,-263.338156,0.00010685,2]
[396991384,1765135848294,-263.338156,0.00010685,2]
[396991386,1765135848305,-263.338156,0.00010685,2]
[396991388,1765135848314,-263.338156,0.00010685,2]
[396991390,1765135848324,-263.338156,0.00010685,2]
[396991392,1765135848333,-263.338156,0.00010685,2]
[396991394,1765135848342,-263.338156,0.00010685,2]
[396991396,1765135848351,-263.338156,0.00010685,2]
[396991398,1765135848360,-263.338156,0.00010685,2]
[396991400,1765135848370,-263.338156,0.00010685,2]
[396991402,1765135848379,-263.338156,0.00010685,2]
[396991404,1765135848388,-263.338163,0.00010685,2]
[396991406,1765135848397,-169.963355,0.00010685,2]
[396991408,1765135848406,-169.963355,0.00010685,2]
[396991410,1765135848415,-169.963355,0.00010685,2]
[396991412,1765135848424,-169.963355,0.00010685,2]
[396991414,1765135848433,-169.963355,0.00010685,2]
[396991415,1765135848443,-169.963355,0.00010685,2]
[396991417,1765135848453,-169.963355,0.00010685,2]
[396991419,1765135848462,-169.963355,0.00010685,2]
[396991421,1765135848471,-169.963355,0.00010685,2]
[396991423,1765135848480,-169.963355,0.00010685,2]
[396991425,1765135848490,-169.963355,0.00010685,2]
[396991427,1765135848499,-169.963355,0.00010685,2]
[396991429,1765135848509,-169.963355,0.00010685,2]
[396991431,1765135848518,-169.963355,0.00010685,2]
[396991433,1765135848527,-169.963355,0.00010685,2]
[396991435,1765135848536,-169.963355,0.00010685,2]
[396991437,1765135848546,-169.963355,0.00010685,2]
[396991439,1765135848556,-169.963355,0.00010685,2]
[396991441,1765135848565,-169.963355,0.00010685,2]
[396991443,1765135848575,-169.963346,0.00010685,2]
[396991445,1765135848585,-3583.919497,0.00010685,2]
[396991447,1765135848594,-3583.919497,0.00010685,2]
[396991449,1765135848603,-3583.919497,0.00010685,2]
[396991451,1765135848612,-3583.919497,0.00010685,2]
[396991453,1765135848622,-3583.919497,0.00010685,2]
[396991455,1765135848631,-3583.919497,0.00010685,2]
[396991457,1765135848641,-3583.919497,0.00010685,2]
[396991459,1765135848650,-3583.919497,0.00010685,2]
[396991461,1765135848658,-3583.919497,0.00010685,2]
[396991463,1765135848667,-3583.919497,0.00010685,2]
[396991465,1765135848676,-3583.919497,0.00010685,2]
[396991467,1765135848685,-3583.919497,0.00010685,2]
[396991468,1765135848695,-3583.919497,0.00010685,2]
[396991470,1765135848704,-205.33468791,0.00010685,2]
[396991474,1765135848755,-333.0,0.00010685,2]
[397001297,1765136834090,-434.41721027,9.141e-05,2]
[397001298,1765136834112,-276.39579818,9.141e-05,2]
[397001299,1765136834132,-226.0,9.141e-05,2]
[397001300,1765136834152,-300.0,9.141e-05,2]
[397001301,1765136834171,-68.84633974,9.142e-05,2]
[397001305,1765136836080,-508.43827742,9.142e-05,2]
[397001308,1765136839086,-1052.38384772,9.142e-05,2]
[397001371,1765136946098,-2450.0,9.142e-05,2]
[397001372,1765136954150,-8631.85151262,9.142e-05,2]
[397001373,1765136954172,-300.0,9.324e-05,2]
[397001374,1765136954192,-300.0,9.324e-05,2]
[397001375,1765136954213,-300.0,9.324e-05,2]
[397001376,1765136954234,-300.0,9.324e-05,2]
[397001377,1765136954254,-300.0,9.324e-05,2]
[397001378,1765136954276,-300.0,9.324e-05,2]
[397001379,1765136954299,-300.0,9.324e-05,2]
[397001380,1765136954319,-300.0,9.324e-05,2]
[397001381,1765136954342,-300.0,9.324e-05,2]
[397001382,1765136954367,-300.0,9.324e-05,2]
[397001383,1765136954389,-300.0,9.324e-05,2]
[397001384,1765136954409,-300.0,9.324e-05,2]
[397001385,1765136954431,-300.0,9.324e-05,2]
[397001386,1765136954452,-300.0,9.324e-05,2]
[397001387,1765136954471,-5.29066888,9.324e-05,2]
[397001439,1765137037996,-294.70933112,9.324e-05,2]
[397001441,1765137038006,-227.0,9.324e-05,2]
[397001443,1765137038015,-359.09363367,9.643e-05,2]
[397001445,1765137038024,-4412.1600787,9.803e-05,2]
[397001447,1765137038033,-399.31076779,9.861e-05,2]
[397001449,1765137038043,-161.547,9.999e-05,2]
[397001451,1765137038052,-10000.0,0.0001,2]
[397001453,1765137038061,-758.17918872,0.00010108,2]
[397001455,1765137038072,-1472.13611728,0.00010108,2]
[397001457,1765137038081,-94.46547115,0.00010151,2]
[397001656,1765137040210,-596.49919697,9.643e-05,2]
[397001963,1765137043201,-49.2229751,9.643e-05,2]
[397001965,1765137043211,-294.84490267,0.00010151,2]
[397001967,1765137043220,-700.05791419,0.00010151,2]
[397001969,1765137043230,-500.0,0.00010184,2]
[397001971,1765137043239,-500.0,0.00010184,2]
[397001973,1765137043248,-500.0,0.00010184,2]
[397001975,1765137043258,-500.0,0.00010184,2]
[397001977,1765137043267,-500.0,0.00010184,2]
[397001979,1765137043277,-275.01536,0.00010184,2]
[397001981,1765137043288,-224.98464,0.00010184,2]
[397001983,1765137043297,-500.0,0.00010184,2]
[397001985,1765137043306,-500.0,0.00010184,2]
[397001987,1765137043316,-500.0,0.00010184,2]
[397001989,1765137043325,-500.0,0.00010184,2]
[397001991,1765137043335,-544.35664693,0.00010184,2]
[397001993,1765137043345,-500.0,0.00010184,2]
[397001995,1765137043354,-1151.08348642,0.00010185,2]
[397001997,1765137043367,-4821.60298698,0.00010185,2]
[397002303,1765137046317,-2272.23679476,0.00010185,2]
[397002305,1765137046328,-12805.63485539,0.00010185,2]
[397002307,1765137046337,-600.0,0.00010199,2]
[397002309,1765137046346,-302.005376,0.000102,2]
[397002311,1765137046355,-302.005376,0.000102,2]
[397002313,1765137046368,-500.0,0.00010432,2]
[397002315,1765137046378,-500.0,0.00010432,2]
[397002317,1765137046387,-154.96,0.00010432,2]
[397002319,1765137046396,-2312.83697232,0.00010656,2]
[397002321,1765137046406,-151.0,0.00010679,2]
[397002323,1765137046415,-250.0,0.00010684,3]
[397002325,1765137046424,-250.0,0.00010684,2]
[397002327,1765137046433,-151.0,0.00010685,2]
[397002329,1765137046443,-498.87874908,0.00010685,2]
[397012090,1765137949540,1951.0,0.000211,99]
[397012184,1765138033094,-399.31076779,9.899e-05,2]
[397012185,1765138033115,-274.64974434,9.945e-05,2]
[397012186,1765138033135,-232.0,9.953e-05,2]
[397012187,1765138033155,-300.0,9.999e-05,2]
[397012188,1765138033175,-488.61991185,0.0001,2]
[397012220,1765138041101,-274.64974434,9.922e-05,2]
[397012221,1765138041126,-217.36315845,0.0001,2]
[397012412,1765138232053,-399.31076779,9.993e-05,2]
[397012415,1765138232063,-220.53835325,0.0001,2]
[397012417,1765138232075,-5179.39151177,0.0001,2]
[397012669,1765138238200,-703.52979223,0.0001,2]
[397012715,1765138238642,-474.65,0.0001,2]
[397012717,1765138238654,-322.46275452,0.0001,2]
[397012720,1765138238666,-836.55525642,0.0001,2]
[397012722,1765138238677,-1556.88926151,0.0001,2]
[397012724,1765138238687,-3000.0,0.0001,2]